[Event "Titled Tuesday Blitz January 31 Early 2023"]
[White "Bachmann, Axel"]
[Black "Bethke, Richard"]
[WhiteFideId "3700488"]
[BlackFideId "12959243"]
[WhiteElo "2604"]
[BlackElo "2382"]
[Result "0-1"]
[Round "03"]
[TimeControl "180+2"]
[Date "2023.01.31"]
[WhiteClock "0:02:02"]
[BlackClock "0:00:05"]

1. e4 {[%clk 0:03:00]}  c5 {[%clk 0:02:59]} 2. Nc3 {[%clk 0:03:00]}  Nc6 {[%clk 0:02:52]} 3. f4 {[%clk 0:03:01]}  g6 {[%clk 0:02:52]} 4. Nf3 {[%clk 0:02:59]}  Bg7 {[%clk 0:02:52]} 5. a4 {[%clk 0:02:59]}  e6 {[%clk 0:02:50]} 6. e5 {[%clk 0:02:58]}  d5 {[%clk 0:02:45]} 7. d4 {[%clk 0:02:55]}  Nge7 {[%clk 0:02:35]} 8. dxc5 {[%clk 0:02:55]}  Qa5 {[%clk 0:02:32]} 9. Be3 {[%clk 0:02:50]}  Nf5 {[%clk 0:02:31]} 10. Bf2 {[%clk 0:02:51]}  h5 {[%clk 0:02:16]} 11. Qd2 {[%clk 0:02:48]}  a6 {[%clk 0:02:00]} 12. Bd3 {[%clk 0:02:45]}  Nb4 {[%clk 0:01:25]} 13. Bxf5 {[%clk 0:02:44]}  gxf5 {[%clk 0:01:24]} 14. O-O {[%clk 0:02:37]}  Bf8 {[%clk 0:01:23]} 15. Kh1 {[%clk 0:02:23]}  Bxc5 {[%clk 0:01:12]} 16. Ne2 {[%clk 0:02:19]}  Bxf2 {[%clk 0:01:03]} 17. Rxf2 {[%clk 0:02:20]}  Nc6 {[%clk 0:00:55]} 18. c3 {[%clk 0:02:20]}  Bd7 {[%clk 0:00:50]} 19. Ned4 {[%clk 0:02:21]}  Rc8 {[%clk 0:00:42]} 20. b4 {[%clk 0:02:19]}  Qc7 {[%clk 0:00:37]} 21. Nb3 {[%clk 0:02:19]}  b6 {[%clk 0:00:34]} 22. Ng5 {[%clk 0:02:16]}  h4 {[%clk 0:00:22]} 23. Rf3 {[%clk 0:02:16]}  a5 {[%clk 0:00:18]} 24. b5 {[%clk 0:02:15]}  Ne7 {[%clk 0:00:14]} 25. Nd4 {[%clk 0:02:15]}  Ng6 {[%clk 0:00:14]} 26. Rh3 {[%clk 0:02:01]}  Qc4 {[%clk 0:00:10]} 27. Ra3 {[%clk 0:02:01]}  Ke7 {[%clk 0:00:07]} 28. Qe1 {[%clk 0:02:00]}  Rc5 {[%clk 0:00:06]} 29. Ngf3 {[%clk 0:02:01]}  Rhc8 {[%clk 0:00:03]} 30. Nxh4 {[%clk 0:02:01]}  Nxf4 {[%clk 0:00:04]} 31. Rf3 {[%clk 0:02:01]}  Nd3 {[%clk 0:00:03]} 32. Qe3 {[%clk 0:02:00]}  Nb4 {[%clk 0:00:02]} 33. Qg5+ {[%clk 0:02:00]}  Ke8 {[%clk 0:00:01]} 34. Nhxf5 {[%clk 0:02:01]}  exf5 {[%clk 0:00:02]} 35. h4 {[%clk 0:02:01]}  Qxd4 {[%clk 0:00:01]} 36. Qg8+ {[%clk 0:02:02]}  Ke7 {[%clk 0:00:01]} 37. Qg5+ {[%clk 0:02:02]}  f6 {[%clk 0:00:01]} 38. cxd4 {[%clk 0:02:03]}  fxg5 {[%clk 0:00:01]} 39. dxc5 {[%clk 0:02:03]}  bxc5 {[%clk 0:00:02]} 40. hxg5 {[%clk 0:02:03]}  d4 {[%clk 0:00:02]} 41. Rh3 {[%clk 0:02:03]}  c4 {[%clk 0:00:02]} 42. Rh7+ {[%clk 0:02:04]}  Ke6 {[%clk 0:00:03]} 43. g6 {[%clk 0:02:05]}  Be8 {[%clk 0:00:03]} 44. g7 {[%clk 0:02:05]}  Bf7 {[%clk 0:00:04]} 45. Rh8 {[%clk 0:02:06]}  Bg8 {[%clk 0:00:04]} 46. b6 {[%clk 0:02:03]}  Kf7 {[%clk 0:00:05]} 47. b7 {[%clk 0:02:04]}  Rb8 {[%clk 0:00:05]} 48. Rh6 {[%clk 0:02:04]}  Kxg7 {[%clk 0:00:05]} 49. Rb6 {[%clk 0:02:04]}  Nd5 {[%clk 0:00:06]} 50. Rg3+ {[%clk 0:02:02]}  Kf8 {[%clk 0:00:05]} 51. e6 {[%clk 0:02:02]}  Nxb6 {[%clk 0:00:05]} 0-1


[Site "https://www.chess.com"]

[Event "Titled Tuesday Blitz January 31 Early 2023"]
[White "Cella, Glaucio Dalla Cortt"]
[Black "Gurel, Ediz"]
[WhiteFideId "2119455"]
[BlackFideId "44507356"]
[WhiteElo "1894"]
[BlackElo "2499"]
[Result "1-0"]
[Round "03"]
[TimeControl "180+2"]
[Date "2023.01.31"]
[WhiteClock "0:02:16"]
[BlackClock "0:01:58"]

1. e4 {[%clk 0:03:00]}  c5 {[%clk 0:02:58]} 2. Nf3 {[%clk 0:03:01]}  e6 {[%clk 0:02:53]} 3. c3 {[%clk 0:03:01]}  Nf6 {[%clk 0:02:48]} 4. e5 {[%clk 0:03:01]}  Nd5 {[%clk 0:02:49]} 5. d4 {[%clk 0:03:02]}  cxd4 {[%clk 0:02:48]} 6. cxd4 {[%clk 0:03:03]}  d6 {[%clk 0:02:38]} 7. Nc3 {[%clk 0:03:03]}  Nxc3 {[%clk 0:02:38]} 8. bxc3 {[%clk 0:02:59]}  Qc7 {[%clk 0:02:39]} 9. Bb5+ {[%clk 0:02:58]}  Bd7 {[%clk 0:02:39]} 10. Qb3 {[%clk 0:02:52]}  a6 {[%clk 0:02:31]} 11. Bxd7+ {[%clk 0:02:42]}  Nxd7 {[%clk 0:02:31]} 12. exd6 {[%clk 0:02:43]}  Bxd6 {[%clk 0:02:25]} 13. c4 {[%clk 0:02:44]}  O-O {[%clk 0:02:24]} 14. O-O {[%clk 0:02:42]}  Rac8 {[%clk 0:02:23]} 15. c5 {[%clk 0:02:38]}  Be7 {[%clk 0:02:22]} 16. Rb1 {[%clk 0:02:39]}  Rb8 {[%clk 0:02:14]} 17. g3 {[%clk 0:02:35]}  e5 {[%clk 0:02:01]} 18. Nxe5 {[%clk 0:02:20]}  Nxe5 {[%clk 0:02:00]} 19. Bf4 {[%clk 0:02:21]}  Bf6 {[%clk 0:01:58]} 20. Rfe1 {[%clk 0:02:16]} 1-0


[Site "https://www.chess.com"]

[Event "Titled Tuesday Blitz January 31 Early 2023"]
[White "Ozen, Bahadir"]
[Black "Lehtosaari, Mauri"]
[WhiteFideId "6337058"]
[BlackFideId "501999"]
[WhiteElo "2369"]
[BlackElo "2176"]
[Result "1/2-1/2"]
[Round "03"]
[TimeControl "180+2"]
[Date "2023.01.31"]
[WhiteClock "0:01:00"]
[BlackClock "0:00:55"]

1. g3 {[%clk 0:03:00]}  d5 {[%clk 0:02:55]} 2. Nf3 {[%clk 0:03:00]}  Nf6 {[%clk 0:02:54]} 3. Bg2 {[%clk 0:03:01]}  c6 {[%clk 0:02:54]} 4. O-O {[%clk 0:03:01]}  Bg4 {[%clk 0:02:53]} 5. h3 {[%clk 0:03:01]}  Bh5 {[%clk 0:02:51]} 6. d3 {[%clk 0:03:02]}  Nbd7 {[%clk 0:02:46]} 7. Qe1 {[%clk 0:03:02]}  e5 {[%clk 0:02:35]} 8. e4 {[%clk 0:03:02]}  dxe4 {[%clk 0:02:36]} 9. dxe4 {[%clk 0:03:02]}  Bc5 {[%clk 0:02:35]} 10. Nbd2 {[%clk 0:03:00]}  O-O {[%clk 0:02:34]} 11. Nh4 {[%clk 0:02:59]}  Re8 {[%clk 0:02:31]} 12. Nb3 {[%clk 0:02:59]}  Bb6 {[%clk 0:02:29]} 13. a4 {[%clk 0:02:58]}  a5 {[%clk 0:02:29]} 14. Nf5 {[%clk 0:02:57]}  Qc7 {[%clk 0:02:23]} 15. Bd2 {[%clk 0:02:53]}  Bg6 {[%clk 0:02:12]} 16. Nh4 {[%clk 0:02:53]}  Nf8 {[%clk 0:02:01]} 17. Nxg6 {[%clk 0:02:52]}  hxg6 {[%clk 0:01:58]} 18. Qe2 {[%clk 0:02:51]}  Ne6 {[%clk 0:01:56]} 19. c3 {[%clk 0:02:49]}  Nh5 {[%clk 0:01:49]} 20. Kh2 {[%clk 0:02:48]}  Rad8 {[%clk 0:01:44]} 21. Rad1 {[%clk 0:02:47]}  Rd7 {[%clk 0:01:37]} 22. Bf3 {[%clk 0:02:36]}  Nf6 {[%clk 0:01:29]} 23. Bc1 {[%clk 0:02:35]}  Red8 {[%clk 0:01:29]} 24. Kg2 {[%clk 0:02:33]}  Rd6 {[%clk 0:01:13]} 25. h4 {[%clk 0:01:57]}  R8d7 {[%clk 0:01:10]} 26. Rfe1 {[%clk 0:01:49]}  Qd8 {[%clk 0:01:10]} 27. Rxd6 {[%clk 0:01:48]}  Rxd6 {[%clk 0:01:10]} 28. Qc4 {[%clk 0:01:16]}  Nh5 {[%clk 0:00:56]} 29. Qe2 {[%clk 0:01:00]}  Nf6 {[%clk 0:00:55]} 30. Qc4 {[%clk 0:01:01]}  Nh5 {[%clk 0:00:55]} 31. Qe2 {[%clk 0:01:00]}  Nf6 {[%clk 0:00:55]} 1/2-1/2


[Site "https://www.chess.com"]

[Event "Titled Tuesday Blitz January 31 Early 2023"]
[White "Ozates, Tuna"]
[Black "Kazakouski, Valery"]
[WhiteFideId "6354521"]
[BlackFideId "13507443"]
[WhiteElo "2251"]
[BlackElo "2539"]
[Result "0-1"]
[Round "03"]
[TimeControl "180+2"]
[Date "2023.01.31"]
[WhiteClock "0:00:17"]
[BlackClock "0:01:52"]

1. e4 {[%clk 0:03:00]}  c5 {[%clk 0:02:59]} 2. Nf3 {[%clk 0:03:00]}  a6 {[%clk 0:02:59]} 3. c3 {[%clk 0:03:00]}  d5 {[%clk 0:02:59]} 4. exd5 {[%clk 0:03:01]}  Qxd5 {[%clk 0:03:00]} 5. d4 {[%clk 0:03:02]}  Bg4 {[%clk 0:03:00]} 6. Be2 {[%clk 0:03:02]}  Nf6 {[%clk 0:03:00]} 7. O-O {[%clk 0:03:02]}  e6 {[%clk 0:03:00]} 8. Be3 {[%clk 0:02:44]}  cxd4 {[%clk 0:02:59]} 9. cxd4 {[%clk 0:02:44]}  Nc6 {[%clk 0:02:59]} 10. Nc3 {[%clk 0:02:44]}  Qd6 {[%clk 0:03:00]} 11. Qb3 {[%clk 0:02:11]}  Qb4 {[%clk 0:02:59]} 12. Qc2 {[%clk 0:02:07]}  Be7 {[%clk 0:02:58]} 13. a3 {[%clk 0:02:04]}  Qd6 {[%clk 0:02:58]} 14. Rad1 {[%clk 0:02:04]}  O-O {[%clk 0:02:58]} 15. Rfe1 {[%clk 0:01:44]}  Rfd8 {[%clk 0:02:57]} 16. h3 {[%clk 0:01:42]}  Bh5 {[%clk 0:02:56]} 17. Qb3 {[%clk 0:01:34]}  b5 {[%clk 0:02:55]} 18. Ng5 {[%clk 0:01:27]}  Bg6 {[%clk 0:02:52]} 19. Bf3 {[%clk 0:01:23]}  Na5 {[%clk 0:02:52]} 20. Qb4 {[%clk 0:01:20]}  Qc7 {[%clk 0:02:34]} 21. Bf4 {[%clk 0:01:06]}  Qxf4 {[%clk 0:02:25]} 22. Qxe7 {[%clk 0:01:06]}  Qxg5 {[%clk 0:02:21]} 23. Bxa8 {[%clk 0:01:02]}  Rxa8 {[%clk 0:02:21]} 24. d5 {[%clk 0:00:59]}  Re8 {[%clk 0:02:01]} 25. d6 {[%clk 0:00:43]}  Rxe7 {[%clk 0:01:58]} 26. dxe7 {[%clk 0:00:42]}  Ne8 {[%clk 0:01:59]} 27. Rd7 {[%clk 0:00:29]}  Nc6 {[%clk 0:01:55]} 28. Nd5 {[%clk 0:00:17]}  exd5 {[%clk 0:01:52]} 0-1


[Site "https://www.chess.com"]

[Event "Titled Tuesday Blitz January 31 Early 2023"]
[White "Rakhmatullaev, Almas"]
[Black "Roux, Baptiste"]
[WhiteFideId "14205793"]
[BlackFideId "36017450"]
[WhiteElo "2275"]
[BlackElo "2300"]
[Result "1-0"]
[Round "03"]
[TimeControl "180+2"]
[Date "2023.01.31"]
[WhiteClock "0:01:28"]
[BlackClock "0:00:19"]

1. e4 {[%clk 0:03:00]}  e5 {[%clk 0:02:55]} 2. Nf3 {[%clk 0:03:01]}  Nc6 {[%clk 0:02:55]} 3. d4 {[%clk 0:03:01]}  exd4 {[%clk 0:02:55]} 4. Nxd4 {[%clk 0:03:00]}  Bc5 {[%clk 0:02:53]} 5. Nf5 {[%clk 0:03:00]}  Qf6 {[%clk 0:02:38]} 6. Nc3 {[%clk 0:02:59]}  Nge7 {[%clk 0:02:35]} 7. Be3 {[%clk 0:02:54]}  Bb4 {[%clk 0:02:27]} 8. Nxe7 {[%clk 0:02:46]}  Qxe7 {[%clk 0:02:15]} 9. Bd3 {[%clk 0:02:45]}  d6 {[%clk 0:02:12]} 10. O-O {[%clk 0:02:45]}  Bxc3 {[%clk 0:02:13]} 11. bxc3 {[%clk 0:02:46]}  Ne5 {[%clk 0:02:13]} 12. f4 {[%clk 0:02:45]}  Bg4 {[%clk 0:02:09]} 13. Qd2 {[%clk 0:02:42]}  Nxd3 {[%clk 0:02:06]} 14. cxd3 {[%clk 0:02:43]}  Bd7 {[%clk 0:01:59]} 15. Rab1 {[%clk 0:02:40]}  Bc6 {[%clk 0:01:59]} 16. Bd4 {[%clk 0:02:38]}  O-O {[%clk 0:01:57]} 17. f5 {[%clk 0:02:35]}  f6 {[%clk 0:01:57]} 18. c4 {[%clk 0:02:33]}  b6 {[%clk 0:01:56]} 19. Rbe1 {[%clk 0:02:32]}  a5 {[%clk 0:01:54]} 20. g4 {[%clk 0:02:29]}  b5 {[%clk 0:01:51]} 21. cxb5 {[%clk 0:02:28]}  Bxb5 {[%clk 0:01:51]} 22. h4 {[%clk 0:02:25]}  c5 {[%clk 0:01:50]} 23. Bc3 {[%clk 0:02:24]}  Rfe8 {[%clk 0:01:33]} 24. g5 {[%clk 0:02:23]}  c4 {[%clk 0:01:18]} 25. Rf2 {[%clk 0:02:07]}  fxg5 {[%clk 0:00:55]} 26. f6 {[%clk 0:01:49]}  gxf6 {[%clk 0:00:50]} 27. Rxf6 {[%clk 0:01:43]}  Qa7+ {[%clk 0:00:26]} 28. Kh2 {[%clk 0:01:36]}  Re5 {[%clk 0:00:25]} 29. Bxe5 {[%clk 0:01:34]}  dxe5 {[%clk 0:00:25]} 30. Qxg5+ {[%clk 0:01:34]}  Kh8 {[%clk 0:00:26]} 31. Qxe5 {[%clk 0:01:31]}  Qg7 {[%clk 0:00:23]} 32. Rg1 {[%clk 0:01:30]}  cxd3 {[%clk 0:00:19]} 33. Rf8+ {[%clk 0:01:28]} 1-0


[Site "https://www.chess.com"]

[Event "Titled Tuesday Blitz January 31 Early 2023"]
[White "Martin Duque, Jesus"]
[Black "Koelle, Tobias"]
[WhiteFideId "2208954"]
[BlackFideId "16207378"]
[WhiteElo "2386"]
[BlackElo "2432"]
[Result "0-1"]
[Round "03"]
[TimeControl "180+2"]
[Date "2023.01.31"]
[WhiteClock "0:00:22"]
[BlackClock "0:01:26"]

1. Nf3 {[%clk 0:02:59]}  f5 {[%clk 0:02:53]} 2. d3 {[%clk 0:02:59]}  Nf6 {[%clk 0:02:53]} 3. e4 {[%clk 0:02:58]}  d6 {[%clk 0:02:54]} 4. Nc3 {[%clk 0:02:54]}  e5 {[%clk 0:02:54]} 5. exf5 {[%clk 0:02:53]}  Bxf5 {[%clk 0:02:54]} 6. d4 {[%clk 0:02:53]}  e4 {[%clk 0:02:50]} 7. Nh4 {[%clk 0:02:53]}  Bd7 {[%clk 0:02:47]} 8. Bg5 {[%clk 0:02:50]}  Be7 {[%clk 0:02:43]} 9. Bc4 {[%clk 0:02:37]}  d5 {[%clk 0:02:43]} 10. Nxd5 {[%clk 0:02:28]}  Nxd5 {[%clk 0:02:43]} 11. Qh5+ {[%clk 0:02:28]}  g6 {[%clk 0:02:08]} 12. Nxg6 {[%clk 0:02:27]}  Bg4 {[%clk 0:02:05]} 13. Qxg4 {[%clk 0:02:20]}  hxg6 {[%clk 0:02:04]} 14. Qe6 {[%clk 0:02:18]}  c6 {[%clk 0:01:56]} 15. Bxe7 {[%clk 0:01:47]}  Qxe7 {[%clk 0:01:54]} 16. Qc8+ {[%clk 0:01:41]}  Qd8 {[%clk 0:01:50]} 17. Qxb7 {[%clk 0:01:33]}  Nd7 {[%clk 0:01:46]} 18. Qxc6 {[%clk 0:01:33]}  Ne7 {[%clk 0:01:41]} 19. Qxe4 {[%clk 0:01:29]}  Rc8 {[%clk 0:01:37]} 20. Bb3 {[%clk 0:01:27]}  Qa5+ {[%clk 0:01:33]} 21. c3 {[%clk 0:01:24]}  Qf5 {[%clk 0:01:34]} 22. Qxf5 {[%clk 0:01:12]}  Nxf5 {[%clk 0:01:35]} 23. O-O-O {[%clk 0:01:10]}  Kd8 {[%clk 0:01:33]} 24. Be6 {[%clk 0:01:03]}  Kc7 {[%clk 0:01:32]} 25. Rde1 {[%clk 0:00:57]}  Kd6 {[%clk 0:01:28]} 26. Bf7 {[%clk 0:00:45]}  Nf8 {[%clk 0:01:28]} 27. g4 {[%clk 0:00:42]}  Nh6 {[%clk 0:01:26]} 28. Bb3 {[%clk 0:00:32]}  Nxg4 {[%clk 0:01:26]} 29. f3 {[%clk 0:00:29]}  Nf2 {[%clk 0:01:26]} 30. Rhg1 {[%clk 0:00:24]}  Nd3+ {[%clk 0:01:24]} 31. Kd2 {[%clk 0:00:23]}  Nxe1 {[%clk 0:01:25]} 32. Rxe1 {[%clk 0:00:22]}  Rxh2+ {[%clk 0:01:26]} 33. Kd3 {[%clk 0:00:22]} 0-1


[Site "https://www.chess.com"]

[Event "Titled Tuesday Blitz January 31 Early 2023"]
[White "Zochowski, Kacper"]
[Black "Rohith Krishna S"]
[WhiteFideId "1125494"]
[BlackFideId "46617051"]
[WhiteElo "2262"]
[BlackElo "2385"]
[Result "0-1"]
[Round "03"]
[TimeControl "180+2"]
[Date "2023.01.31"]
[WhiteClock "0:00:04"]
[BlackClock "0:00:20"]

1. Nf3 {[%clk 0:02:54]}  Nf6 {[%clk 0:02:59]} 2. c4 {[%clk 0:02:54]}  e6 {[%clk 0:02:59]} 3. g3 {[%clk 0:02:54]}  d5 {[%clk 0:02:59]} 4. Bg2 {[%clk 0:02:55]}  c5 {[%clk 0:02:58]} 5. cxd5 {[%clk 0:02:54]}  exd5 {[%clk 0:02:56]} 6. d4 {[%clk 0:02:55]}  c4 {[%clk 0:02:54]} 7. O-O {[%clk 0:02:50]}  Be7 {[%clk 0:02:49]} 8. Nc3 {[%clk 0:02:42]}  O-O {[%clk 0:02:48]} 9. Ne5 {[%clk 0:02:41]}  h6 {[%clk 0:02:38]} 10. e4 {[%clk 0:02:40]}  dxe4 {[%clk 0:02:16]} 11. Nxe4 {[%clk 0:02:41]}  Nxe4 {[%clk 0:02:14]} 12. Bxe4 {[%clk 0:02:40]}  Bf6 {[%clk 0:02:12]} 13. Be3 {[%clk 0:02:27]}  Nc6 {[%clk 0:02:02]} 14. Nxc6 {[%clk 0:02:22]}  bxc6 {[%clk 0:02:02]} 15. Bxc6 {[%clk 0:02:10]}  Rb8 {[%clk 0:02:02]} 16. Qc2 {[%clk 0:01:57]}  Qb6 {[%clk 0:01:33]} 17. Bg2 {[%clk 0:01:55]}  Qxb2 {[%clk 0:01:30]} 18. Qxc4 {[%clk 0:01:53]}  Bf5 {[%clk 0:01:30]} 19. Rad1 {[%clk 0:01:37]}  Rfc8 {[%clk 0:01:21]} 20. Qa4 {[%clk 0:01:28]}  Bc2 {[%clk 0:01:14]} 21. Qxa7 {[%clk 0:01:16]}  Bxd1 {[%clk 0:01:08]} 22. Rxd1 {[%clk 0:01:17]}  Qc2 {[%clk 0:01:08]} 23. Rf1 {[%clk 0:00:56]}  Rb1 {[%clk 0:00:53]} 24. Bd5 {[%clk 0:00:53]}  Rf8 {[%clk 0:00:46]} 25. Rxb1 {[%clk 0:00:52]}  Qxb1+ {[%clk 0:00:46]} 26. Kg2 {[%clk 0:00:52]}  Qb5 {[%clk 0:00:46]} 27. Bb3 {[%clk 0:00:33]}  Qd3 {[%clk 0:00:34]} 28. Bd5 {[%clk 0:00:32]}  Qf5 {[%clk 0:00:33]} 29. Bf3 {[%clk 0:00:32]}  Re8 {[%clk 0:00:30]} 30. Qa4 {[%clk 0:00:24]}  Re7 {[%clk 0:00:27]} 31. Qa8+ {[%clk 0:00:20]}  Kh7 {[%clk 0:00:27]} 32. a4 {[%clk 0:00:21]}  Qc2 {[%clk 0:00:25]} 33. Kg1 {[%clk 0:00:20]}  g6 {[%clk 0:00:21]} 34. h4 {[%clk 0:00:20]}  Qb1+ {[%clk 0:00:20]} 35. Kg2 {[%clk 0:00:20]}  Qb2 {[%clk 0:00:21]} 36. Be4 {[%clk 0:00:08]}  Bxd4 {[%clk 0:00:20]} 37. h5 {[%clk 0:00:09]}  Bxe3 {[%clk 0:00:19]} 38. hxg6+ {[%clk 0:00:10]}  Kg7 {[%clk 0:00:19]} 39. gxf7 {[%clk 0:00:06]}  Qxf2+ {[%clk 0:00:20]} 40. Kh3 {[%clk 0:00:06]}  Qxf7 {[%clk 0:00:20]} 41. Qa6 {[%clk 0:00:03]}  Qe6+ {[%clk 0:00:20]} 42. Qxe6 {[%clk 0:00:03]}  Rxe6 {[%clk 0:00:21]} 43. Bd3 {[%clk 0:00:03]}  Bd2 {[%clk 0:00:20]} 44. Bb5 {[%clk 0:00:04]}  Re3 {[%clk 0:00:20]} 0-1


[Site "https://www.chess.com"]

[Event "Titled Tuesday Blitz January 31 Early 2023"]
[White "Postny, Evgeny"]
[Black "Ljukin, Sergei"]
[WhiteFideId "2804344"]
[BlackFideId "14102200"]
[WhiteElo "2549"]
[BlackElo "2362"]
[Result "1-0"]
[Round "03"]
[TimeControl "180+2"]
[Date "2023.01.31"]
[WhiteClock "0:00:34"]
[BlackClock "0:00:07"]

1. e4 {[%clk 0:02:57]}  e6 {[%clk 0:03:00]} 2. d4 {[%clk 0:02:51]}  d5 {[%clk 0:03:00]} 3. Nc3 {[%clk 0:02:51]}  Bb4 {[%clk 0:02:59]} 4. e5 {[%clk 0:02:50]}  Ne7 {[%clk 0:03:00]} 5. Bd2 {[%clk 0:02:50]}  b6 {[%clk 0:02:55]} 6. Qg4 {[%clk 0:02:47]}  O-O {[%clk 0:02:53]} 7. Bd3 {[%clk 0:02:46]}  Ba6 {[%clk 0:02:50]} 8. Nf3 {[%clk 0:02:44]}  Bxd3 {[%clk 0:02:49]} 9. cxd3 {[%clk 0:02:45]}  c5 {[%clk 0:02:48]} 10. h4 {[%clk 0:02:40]}  Nbc6 {[%clk 0:02:42]} 11. dxc5 {[%clk 0:02:38]}  bxc5 {[%clk 0:02:25]} 12. h5 {[%clk 0:02:37]}  d4 {[%clk 0:02:24]} 13. Ne4 {[%clk 0:02:32]}  Bxd2+ {[%clk 0:02:22]} 14. Nexd2 {[%clk 0:02:31]}  h6 {[%clk 0:02:20]} 15. O-O {[%clk 0:02:19]}  Nb4 {[%clk 0:02:12]} 16. Ne4 {[%clk 0:02:07]}  Nxd3 {[%clk 0:01:44]} 17. Nf6+ {[%clk 0:01:49]}  Kh8 {[%clk 0:01:43]} 18. Qe4 {[%clk 0:01:50]}  gxf6 {[%clk 0:01:44]} 19. exf6 {[%clk 0:01:50]}  Nd5 {[%clk 0:01:35]} 20. Qxd3 {[%clk 0:01:47]}  Qxf6 {[%clk 0:01:34]} 21. Rac1 {[%clk 0:01:47]}  Rac8 {[%clk 0:01:33]} 22. Rfe1 {[%clk 0:01:45]}  Rg8 {[%clk 0:01:30]} 23. g3 {[%clk 0:01:45]}  Nf4 {[%clk 0:00:46]} 24. Qe4 {[%clk 0:01:46]}  d3 {[%clk 0:00:46]} 25. Kh2 {[%clk 0:01:34]}  Ne2 {[%clk 0:00:45]} 26. Rc4 {[%clk 0:01:27]}  d2 {[%clk 0:00:20]} 27. Rd1 {[%clk 0:01:24]}  Nd4 {[%clk 0:00:20]} 28. Rc3 {[%clk 0:01:16]}  Rg5 {[%clk 0:00:16]} 29. Kg2 {[%clk 0:00:56]}  Rf5 {[%clk 0:00:12]} 30. Nxd4 {[%clk 0:00:53]}  Rxf2+ {[%clk 0:00:11]} 31. Kh3 {[%clk 0:00:53]}  cxd4 {[%clk 0:00:11]} 32. Rxc8+ {[%clk 0:00:53]}  Kg7 {[%clk 0:00:10]} 33. Qg4+ {[%clk 0:00:53]}  Qg5 {[%clk 0:00:09]} 34. Qxg5+ {[%clk 0:00:47]}  hxg5 {[%clk 0:00:10]} 35. Rc2 {[%clk 0:00:47]}  e5 {[%clk 0:00:09]} 36. Rcxd2 {[%clk 0:00:46]}  Rf3 {[%clk 0:00:09]} 37. Kg4 {[%clk 0:00:44]}  Re3 {[%clk 0:00:07]} 38. Rf1 {[%clk 0:00:34]} 1-0


[Site "https://www.chess.com"]

[Event "Titled Tuesday Blitz January 31 Early 2023"]
[White "Sattarov, Bobir"]
[Black "Toczek, Grzegorz"]
[WhiteFideId "14203081"]
[BlackFideId "1106457"]
[WhiteElo "2366"]
[BlackElo "2260"]
[Result "1-0"]
[Round "03"]
[TimeControl "180+2"]
[Date "2023.01.31"]
[WhiteClock "0:00:05"]
[BlackClock "0:00:35"]

1. e4 {[%clk 0:03:00]}  c6 {[%clk 0:02:59]} 2. c4 {[%clk 0:03:00]}  e5 {[%clk 0:02:57]} 3. Nf3 {[%clk 0:02:59]}  d6 {[%clk 0:02:57]} 4. d4 {[%clk 0:02:58]}  Nd7 {[%clk 0:02:56]} 5. Nc3 {[%clk 0:02:55]}  Ngf6 {[%clk 0:02:56]} 6. Be2 {[%clk 0:02:54]}  Be7 {[%clk 0:02:57]} 7. O-O {[%clk 0:02:54]}  O-O {[%clk 0:02:57]} 8. Re1 {[%clk 0:02:52]}  exd4 {[%clk 0:02:54]} 9. Nxd4 {[%clk 0:02:52]}  Re8 {[%clk 0:02:53]} 10. Bf1 {[%clk 0:02:44]}  Nc5 {[%clk 0:02:52]} 11. Qc2 {[%clk 0:02:40]}  a5 {[%clk 0:02:51]} 12. Be3 {[%clk 0:02:39]}  Ne6 {[%clk 0:02:51]} 13. Rad1 {[%clk 0:02:38]}  Nxd4 {[%clk 0:02:50]} 14. Bxd4 {[%clk 0:02:39]}  Qc7 {[%clk 0:02:50]} 15. e5 {[%clk 0:02:30]}  dxe5 {[%clk 0:02:21]} 16. Bxe5 {[%clk 0:02:31]}  Qb6 {[%clk 0:02:18]} 17. Bxf6 {[%clk 0:02:23]}  gxf6 {[%clk 0:02:17]} 18. Re3 {[%clk 0:01:56]}  Be6 {[%clk 0:01:57]} 19. Rde1 {[%clk 0:01:43]}  Kh8 {[%clk 0:01:54]} 20. Bd3 {[%clk 0:01:36]}  h6 {[%clk 0:01:54]} 21. Bg6 {[%clk 0:01:19]}  Bc5 {[%clk 0:01:47]} 22. Na4 {[%clk 0:01:12]}  Qa7 {[%clk 0:01:26]} 23. Nxc5 {[%clk 0:00:57]}  Qxc5 {[%clk 0:01:26]} 24. Bf5 {[%clk 0:00:55]}  Rad8 {[%clk 0:01:19]} 25. h3 {[%clk 0:00:49]}  Rd6 {[%clk 0:01:09]} 26. b3 {[%clk 0:00:42]}  b5 {[%clk 0:01:08]} 27. Qe4 {[%clk 0:00:25]}  Red8 {[%clk 0:01:04]} 28. Bxe6 {[%clk 0:00:20]}  Rxe6 {[%clk 0:01:02]} 29. Qh4 {[%clk 0:00:20]}  Qg5 {[%clk 0:00:51]} 30. Qxg5 {[%clk 0:00:20]}  hxg5 {[%clk 0:00:51]} 31. Rxe6 {[%clk 0:00:21]}  fxe6 {[%clk 0:00:50]} 32. Rxe6 {[%clk 0:00:21]}  bxc4 {[%clk 0:00:51]} 33. bxc4 {[%clk 0:00:22]}  Rd2 {[%clk 0:00:48]} 34. Rxc6 {[%clk 0:00:19]}  Kg7 {[%clk 0:00:48]} 35. g4 {[%clk 0:00:11]}  Rxa2 {[%clk 0:00:47]} 36. Kg2 {[%clk 0:00:12]}  Rc2 {[%clk 0:00:47]} 37. Kf3 {[%clk 0:00:11]}  Rc3+ {[%clk 0:00:47]} 38. Ke4 {[%clk 0:00:09]}  Rxh3 {[%clk 0:00:47]} 39. Ra6 {[%clk 0:00:10]}  Rh2 {[%clk 0:00:44]} 40. f3 {[%clk 0:00:05]}  Kg6 {[%clk 0:00:44]} 41. Rxa5 {[%clk 0:00:03]}  Re2+ {[%clk 0:00:44]} 42. Kd3 {[%clk 0:00:03]}  Rf2 {[%clk 0:00:44]} 43. Ke3 {[%clk 0:00:03]}  Rc2 {[%clk 0:00:44]} 44. Rc5 {[%clk 0:00:04]}  Kf7 {[%clk 0:00:45]} 45. Ke4 {[%clk 0:00:04]}  Ke6 {[%clk 0:00:45]} 46. Rc6+ {[%clk 0:00:04]}  Ke7 {[%clk 0:00:45]} 47. Kf5 {[%clk 0:00:04]}  Rf2 {[%clk 0:00:45]} 48. Re6+ {[%clk 0:00:03]}  Kd7 {[%clk 0:00:44]} 49. Rxf6 {[%clk 0:00:04]}  Rxf3+ {[%clk 0:00:44]} 50. Kxg5 {[%clk 0:00:04]}  Rc3 {[%clk 0:00:44]} 51. Rf4 {[%clk 0:00:05]}  Ke6 {[%clk 0:00:43]} 52. Kg6 {[%clk 0:00:05]}  Ke7 {[%clk 0:00:44]} 53. g5 {[%clk 0:00:05]}  Rh3 {[%clk 0:00:42]} 54. Kg7 {[%clk 0:00:05]}  Ke8 {[%clk 0:00:41]} 55. g6 {[%clk 0:00:05]}  Rh2 {[%clk 0:00:39]} 56. Re4+ {[%clk 0:00:05]}  Kd7 {[%clk 0:00:39]} 57. Kg8 {[%clk 0:00:05]}  Rg2 {[%clk 0:00:37]} 58. g7 {[%clk 0:00:05]}  Rg1 {[%clk 0:00:36]} 59. Kh7 {[%clk 0:00:05]}  Rh1+ {[%clk 0:00:36]} 60. Kg6 {[%clk 0:00:06]}  Rg1+ {[%clk 0:00:36]} 61. Kh6 {[%clk 0:00:06]}  Kd8 {[%clk 0:00:36]} 62. Re5 {[%clk 0:00:05]}  Rh1+ {[%clk 0:00:34]} 63. Rh5 {[%clk 0:00:05]}  Rg1 {[%clk 0:00:35]} 64. Rg5 {[%clk 0:00:05]}  Rxg5 {[%clk 0:00:35]} 65. Kxg5 {[%clk 0:00:05]} 1-0


[Site "https://www.chess.com"]